bitfinex-derivatives/quotes_SOLF0:USTF0_20250312
["timestamp","ask_amount","ask_price","bid_price","bid_amount"]
[1741799114003,0.05326658,124.64,124.61,8.08537033]
[1741799114203,0.05326658,124.64,124.61,0.05917033]
[1741799114403,21.98381644,124.62,124.54,274.78]
[1741799114611,56.00381644,124.62,124.54,240.76]
[1741799115110,21.98381644,124.6,124.54,248.7909]
[1741799115309,38.1455,124.59,124.54,240.76]
[1741799115510,0.05543913,124.58,124.56,0.05696934]
[1741799116706,0.05543913,124.58,124.56,8.08626934]
[1741799117013,0.05543913,124.58,124.56,0.05696934]
[1741799117308,8.029,124.57,124.56,0.05696934]
[1741799118009,8.0306,124.55,124.5,34.02]
[1741799118416,8.0306,124.55,124.52,8.032]
[1741799118609,4.2384,124.57,124.5,34.02]
[1741799118810,38.1455,124.59,124.51,21.98381644]
[1741799119311,46.1736,124.59,124.56,8.0292]
[1741799119512,46.1736,124.59,124.54,0.05565937]
[1741799119513,0.05081508,124.56,124.54,0.05565937]
[1741799119809,0.05056327,124.56,124.54,0.05565937]
[1741799120203,0.05056327,124.56,124.55,8.0299]
[1741799120515,60.05411644,124.62,124.54,0.05565937]
[1741799120711,8.0275,124.6,124.57,8.0285]
[1741799120909,4.60343975,124.59,124.53,56.00381644]
[1741799121109,4.60343975,124.58,124.57,8.029]
[1741799123617,0.05886998,124.59,124.58,8.0284]
[1741799123816,120.18542069,124.66,124.57,21.98381644]
[1741799124021,128.61882069,124.66,124.63,8.025]
[1741799124318,8.0246,124.64,124.59,34.02]
[1741799124715,42.4534,124.66,124.6,8.0265]
[1741799124918,0.05295627,124.63,124.6,8.08021686]
[1741799125719,0.05295627,124.63,124.6,0.05371686]
[1741799126120,8.0261,124.62,124.6,0.05371686]
[1741799126420,22.03677271,124.63,124.56,274.86]
[1741799126615,8.0261,124.62,124.56,274.86]
[1741799127010,34.02,124.63,124.56,274.86]
[1741799127620,0.05868917,124.61,124.58,0.05590299]
[1741799127814,8.0275,124.6,124.58,0.05590299]
[1741799128018,0.05868917,124.61,124.58,0.05590299]
[1741799128523,0.05868917,124.61,124.6,8.0271]
[1741799137526,4.59593974,124.61,124.6,8.0271]
[1741799137726,0.05868917,124.61,124.6,8.0271]
[1741799140025,4.53611904,124.62,124.59,56.00381644]
[1741799140229,16.4569,124.66,124.59,56.00381644]
[1741799140431,4.53555021,124.65,124.59,56.00381644]
[1741799140631,4.53555021,124.64,124.59,56.00381644]
[1741799140826,4.53555311,124.63,124.59,56.00381644]
[1741799141029,8.4334,124.66,124.6,0.0523689]
[1741799141224,0.05674686,124.64,124.6,0.0523689]
[1741799141428,4.53555311,124.63,124.6,0.0523689]
[1741799141737,0.05674686,124.64,124.63,8.0251]
[1741799141934,4.59180425,124.64,124.63,8.0251]
[1741799142737,0.05674686,124.64,124.63,8.0251]
[1741799142934,4.59105656,124.64,124.63,8.0251]
[1741799146537,0.05674686,124.64,124.63,8.0251]
[1741799151842,0.05674686,124.64,124.63,30.00891644]
[1741799152141,0.05674686,124.64,124.63,8.0251]
[1741799152740,56.94437489,124.7,124.67,8.0225]
[1741799152940,12.55087473,124.69,124.63,14.64817489]
[1741799153543,4.52927473,124.68,124.63,14.64817489]
[1741799153843,0.05456682,124.67,124.64,0.06026693]
[1741799154034,0.05456682,124.67,124.66,8.0232]
[1741799154239,4.58361611,124.67,124.66,8.0232]
[1741799154639,43.63348652,124.72,124.65,304.03634978]
[1741799154839,108.37604501,124.73,124.7,14.64817489]
[1741799154840,22.21062432,124.73,124.7,14.64817489]
[1741799155242,4.1244,124.73,124.7,14.64817489]
[1741799155635,4.1839634,124.73,124.7,14.6993395]
[1741799155837,4.1839634,124.73,124.71,8.0197]
[1741799156343,4.1839634,124.73,124.7,14.6993395]
[1741799157444,4.1839634,124.73,124.7,22.7196395]
[1741799157643,4.1839634,124.73,124.7,14.6993395]
[1741799157847,4.1839634,124.73,124.71,8.0197]
[1741799158042,4.1839634,124.73,124.7,14.6993395]
[1741799158243,0.0595634,124.73,124.72,14.63050439]
[1741799158553,10.90837163,124.76,124.72,14.63050439]
[1741799158847,10.90837163,124.76,124.74,14.63050439]
[1741799159750,10.95893857,124.76,124.74,14.69104216]
[1741799160143,10.95893857,124.76,124.75,8.0174]
[1741799160347,3.857e-05,124.76,124.75,63.90289659]
[1741799160548,36.20322628,124.78,124.75,55.88549659]
[1741799160851,128.93595934,124.79,124.77,21.90549659]
[1741799161058,128.93595934,124.79,124.78,33.98]
[1741799161255,492.80053075,124.8,124.79,8.0149]
[1741799161453,492.80053075,124.8,124.79,29.92039659]
[1741799161855,0.05816742,124.81,124.79,21.90549659]
[1741799162061,0.05816742,124.81,124.8,8.0142]
[1741799162559,33.30436768,124.82,124.81,8.0136]
[1741799162760,33.30436768,124.82,124.81,63.87909659]
[1741799162956,77.61634031,124.83,124.81,296.46549659]
[1741799163258,72.46224031,124.83,124.82,8.0129]
[1741799163661,72.46224031,124.83,124.81,296.46549659]
[1741799163859,72.46224031,124.83,124.81,296.51624505]
[1741799164059,72.46224031,124.83,124.81,240.65074846]
[1741799164453,72.46224031,124.83,124.81,262.55624505]
[1741799164859,72.46224031,124.83,124.82,41.9729]
[1741799165257,0.02293904,124.84,124.83,8.0123]
[1741799165461,0.02293904,124.84,124.83,29.91779659]
[1741799166459,4.2198,124.89,124.85,8.0108]
[1741799166658,4.2198,124.89,124.85,21.90549659]
[1741799167067,12.2283,124.89,124.85,29.91589659]
[1741799167363,12.2283,124.89,124.85,8.0104]
[1741799167660,12.2283,124.89,124.86,0.05076023]
[1741799167861,8.0097,124.87,124.86,0.05076023]
[1741799168564,8.0115,124.85,124.81,274.54]
[1741799168952,8.0126,124.83,124.81,240.6]
[1741799169156,21.90549659,124.85,124.81,240.6]
[1741799169358,55.84549659,124.87,124.81,240.6]
[1741799169559,0.05076023,124.84,124.82,0.05527468]
[1741799170464,8.0123,124.83,124.82,0.05527468]
[1741799170868,0.05076023,124.84,124.81,240.6]
[1741799171260,0.05076023,124.84,124.75,240.42]
[1741799171261,21.90549659,124.83,124.75,240.42]
[1741799171455,8.5338,124.82,124.75,240.42]
[1741799171667,8.5338,124.82,124.75,274.36]
[1741799171864,8.5338,124.82,124.75,240.42]
[1741799172063,0.06107831,124.8,124.77,0.05448952]
[1741799172266,8.0161,124.78,124.77,0.05448952]
[1741799172862,21.90549659,124.79,124.72,33.94]
[1741799173165,21.90549659,124.79,124.71,21.90549659]
[1741799173365,21.90549659,124.79,124.71,55.84549659]
[1741799173766,21.90549659,124.77,124.7,240.42]
[1741799174163,8.0184,124.74,124.72,0.05640807]
[1741799174368,21.96616638,124.75,124.72,0.05640807]
[1741799174563,26.06726638,124.75,124.72,0.05640807]
[1741799174771,26.06726638,124.75,124.7,240.42]
[1741799175369,4.16176979,124.75,124.7,274.36]
[1741799175572,0.06066979,124.75,124.71,21.90549659]
[1741799176069,0.06066979,124.75,124.72,0.0524047]
[1741799176265,0.06066979,124.75,124.73,55.84549659]
[1741799176470,4.3015,124.82,124.73,55.84549659]
[1741799176668,4.3015,124.82,124.75,21.90549659]
[1741799176870,4.3015,124.82,124.78,8.0149]
[1741799177170,4.3015,124.82,124.77,21.90549659]
[1741799177470,4.3015,124.82,124.79,8.0144]
[1741799177672,4.3015,124.82,124.76,33.94]
[1741799177973,0.05052415,124.81,124.78,8.06599797]
[1741799178164,0.05052415,124.81,124.78,0.05059797]
[1741799178572,0.05052415,124.81,124.8,8.0142]
[1741799179273,0.05052415,124.81,124.78,0.05059797]
[1741799180375,0.05052415,124.81,124.8,8.0142]
[1741799181671,2.415e-05,124.81,124.8,8.0142]
[1741799182775,4.3791,124.87,124.85,8.0105]
[1741799182976,4.3791,124.87,124.83,33.94]
[1741799183176,4.3791,124.87,124.82,33.94]
[1741799183969,0.05709312,124.86,124.85,8.011]
[1741799184176,0.05709312,124.86,124.83,0.05698756]
[1741799184670,0.05709312,124.86,124.84,8.0116]
[1741799185076,0.05709312,124.86,124.83,0.05698756]
[1741799185280,0.05709312,124.86,124.84,8.0116]
[1741799185775,0.05709312,124.86,124.83,8.06908756]
[1741799186080,8.06789312,124.86,124.83,0.05698756]
[1741799186278,0.05709312,124.86,124.83,0.05698756]
[1741799187073,0.05709312,124.86,124.83,8.06888756]
[1741799187374,0.05709312,124.86,124.83,0.05698756]
[1741799187973,0.05709312,124.86,124.83,8.06878756]
[1741799188278,0.05709312,124.86,124.83,0.05698756]
[1741799188475,0.05709312,124.86,124.84,8.0112]
[1741799188674,0.05709312,124.86,124.83,0.05698756]
[1741799188876,8.0114,124.85,124.83,0.05698756]
[1741799189183,0.05709312,124.86,124.83,0.05698756]
[1741799189881,8.011,124.85,124.83,0.05698756]
[1741799190477,0.05709312,124.86,124.83,0.05698756]
[1741799190679,8.0113,124.85,124.83,0.05698756]
[1741799190879,0.05709312,124.86,124.83,8.06888756]
[1741799191276,0.05709312,124.86,124.83,0.05698756]
[1741799191682,8.0114,124.85,124.83,0.05698756]
[1741799191973,0.05709312,124.86,124.83,0.05698756]
[1741799192180,8.0116,124.84,124.83,0.05698756]
[1741799192578,21.96258971,124.86,124.78,240.46]
[1741799192783,8.0139,124.81,124.78,240.46]
[1741799193084,21.90549659,124.84,124.79,8.0147]
[1741799193284,4.0769,124.83,124.79,8.0147]
[1741799193483,4.0769,124.83,124.78,240.46]
[1741799193684,0.05399114,124.82,124.8,0.05595173]
[1741799194486,8.0136,124.81,124.8,0.05595173]
[1741799197083,0.05399114,124.82,124.8,0.05595173]
[1741799197686,0.05399114,124.82,124.8,8.06975173]
[1741799197886,0.05399114,124.82,124.8,0.05595173]
[1741799198487,8.0136,124.81,124.8,0.05595173]
[1741799198794,21.95948773,124.82,124.74,32.67622486]
[1741799198980,8.0163,124.77,124.74,32.67622486]
[1741799199185,26.20069659,124.8,124.76,8.0165]
[1741799199488,26.20069659,124.8,124.75,32.67622486]
[1741799199989,0.05810089,124.79,124.77,8.0157]
[1741799200178,0.05810089,124.79,124.76,0.05894318]
[1741799200380,0.05810089,124.79,124.78,8.0155]
[1741799201492,0.05810089,124.79,124.76,0.05894318]
[1741799202591,4.49682947,124.79,124.76,0.05894318]
[1741799202990,4.49682947,124.79,124.76,8.07544318]
[1741799203195,4.49682947,124.79,124.76,0.05894318]
[1741799203989,4.49682947,124.79,124.78,8.0155]
[1741799204389,4.49682947,124.79,124.76,0.05894318]
[1741799204593,4.49682947,124.79,124.76,8.07544318]
[1741799204894,4.43872858,124.78,124.76,0.05894318]
[1741799205094,0.05810089,124.79,124.76,0.05894318]
[1741799205293,4.50153482,124.79,124.77,8.0161]
[1741799205693,4.50153482,124.79,124.76,0.05894318]
[1741799205897,0.05810089,124.79,124.76,0.05894318]
[1741799206095,0.05810089,124.79,124.78,8.0155]
[1741799207084,0.05810089,124.79,124.77,8.0158]
[1741799208194,0.05810089,124.79,124.78,8.0155]
[1741799214900,0.01730089,124.79,124.78,29.92099659]
[1741799215198,8.4781,124.86,124.78,21.90549659]
[1741799215400,4.444847,124.85,124.8,21.90549659]
[1741799215795,4.444847,124.85,124.83,8.0117]
[1741799215995,16.4888,124.86,124.8,21.90549659]
[1741799216196,8.4781,124.86,124.8,21.90549659]
[1741799216396,0.05404235,124.85,124.84,8.0112]
[1741799216796,4.49821656,124.85,124.84,8.0112]
[1741799217195,4.49821656,124.85,124.83,0.05442064]
[1741799217400,8.0116,124.84,124.83,0.05442064]
[1741799217600,12.45594503,124.84,124.83,0.05442064]
[1741799217801,4.44434503,124.84,124.83,0.05442064]
[1741799218002,4.49838738,124.85,124.83,0.05442064]
[1741799218200,0.05404235,124.85,124.83,0.05442064]
[1741799218602,12.45675671,124.84,124.83,0.05442064]
[1741799218796,8.0116,124.84,124.83,0.05442064]
[1741799219100,0.05404235,124.85,124.83,0.05442064]
[1741799219402,4.49900926,124.85,124.83,0.05442064]
[1741799219799,4.49900926,124.85,124.84,8.0116]
[1741799220195,0.05404235,124.85,124.84,8.0116]
[1741799220601,0.05404235,124.85,124.83,0.05442064]
[1741799220998,12.46150265,124.84,124.83,0.05442064]
[1741799221196,0.05404235,124.85,124.83,0.05442064]
[1741799221597,0.05404235,124.85,124.84,8.0116]
[1741799221797,0.05404235,124.85,124.83,0.05442064]
[1741799222599,12.46210047,124.84,124.83,0.05442064]
[1741799223103,4.45050047,124.84,124.79,240.42]
[1741799223300,4.45050047,124.84,124.76,118.16379487]
[1741799223301,21.90549659,124.82,124.76,118.16379487]
[1741799223512,4.45050047,124.81,124.77,32.67622486]
[1741799223803,12.46500047,124.8,124.77,40.69202486]
[1741799224004,8.0145,124.8,124.77,40.69202486]
[1741799224206,8.06661481,124.8,124.77,40.74323682]
[1741799224401,0.05211481,124.8,124.77,32.72743682]
[1741799224794,4.45319825,124.79,124.77,32.72743682]
[1741799225008,0.05211481,124.8,124.77,32.72743682]
[1741799225206,4.4529478,124.79,124.77,0.05121196]
[1741799225407,12.4681478,124.79,124.77,0.05121196]
[1741799225609,8.0152,124.79,124.77,0.05121196]
[1741799226115,8.0155,124.78,124.77,0.05121196]
[1741799226614,4.45299655,124.78,124.73,240.38]
[1741799226803,4.45299655,124.77,124.73,248.3982]
[1741799227004,21.90549659,124.78,124.73,240.38]
[1741799227200,8.55929114,124.77,124.73,240.38]
[1741799227507,4.1058,124.77,124.73,240.38]
[1741799227703,4.50918017,124.76,124.74,0.0604367]
[1741799227899,4.45277354,124.75,124.72,32.67622486]
[1741799228104,4.45277354,124.74,124.72,32.67622486]
[1741799228304,3.9651,124.75,124.72,32.67622486]
[1741799228503,4.45147978,124.74,124.72,32.67622486]
[1741799228703,4.45168968,124.73,124.72,32.67622486]
[1741799228900,4.45168968,124.73,124.71,85.48757001]
[1741799229109,12.47108968,124.72,124.71,85.54334742]
[1741799230014,12.47108968,124.72,124.71,0.05577741]
[1741799230910,4.45168968,124.72,124.71,0.05577741]
[1741799231108,0.05312661,124.73,124.71,0.05577741]
[1741799231303,4.49973734,124.73,124.71,0.05577741]
[1741799231514,0.05312661,124.73,124.72,8.0194]
[1741799232612,4.44321609,124.78,124.71,55.901274]
[1741799232808,4.44321609,124.78,124.71,55.84549659]
[1741799233008,4.44321609,124.77,124.71,55.84549659]
[1741799233207,8.0156,124.78,124.71,55.84549659]
[1741799233511,4.44359327,124.77,124.71,55.84549659]
[1741799233707,41.9554,124.79,124.71,55.84549659]
[1741799233708,0.05606544,124.76,124.75,8.017]
[1741799234114,0.05606544,124.76,124.74,0.06131756]
[1741799234617,8.07336544,124.76,124.74,0.06131756]
[1741799234804,0.05606544,124.76,124.74,0.06131756]
[1741799235005,55.90156203,124.76,124.68,33.94]
[1741799235211,8.0184,124.74,124.68,33.94]
[1741799235711,37.8946,124.76,124.69,21.90549659]
[1741799235913,4.44419229,124.75,124.69,21.90549659]
[1741799236110,4.44419229,124.75,124.74,8.0177]
[1741799236419,0.05825837,124.76,124.71,55.89602857]
[1741799236619,0.05825837,124.76,124.75,8.0174]
[1741799237909,0.05825837,124.76,124.74,8.07392173]
[1741799238115,0.05825837,124.76,124.74,0.05622173]
[1741799238720,8.07535837,124.76,124.74,0.05622173]
[1741799239220,0.05825837,124.76,124.74,0.05622173]
[1741799240426,0.05825837,124.76,124.74,8.07402173]
[1741799240717,0.05825837,124.76,124.74,0.05622173]
[1741799240915,8.0174,124.75,124.74,0.05622173]
[1741799241724,4.44314141,124.75,124.69,33.94]
[1741799241922,4.44314141,124.75,124.71,8.0194]
[1741799242225,4.44314141,124.75,124.69,55.84549659]
[1741799242518,4.0635,124.77,124.7,3.3164]
[1741799242718,8.0176,124.75,124.7,3.3164]
[1741799242918,0.05305756,124.75,124.72,0.05576369]
[1741799243122,0.05305756,124.75,124.72,8.07486369]
[1741799243321,8.07075756,124.75,124.72,8.07486369]
[1741799243517,0.05305756,124.75,124.72,0.05576369]
[1741799243922,8.0185,124.74,124.72,0.05576369]
[1741799244421,8.0185,124.74,124.72,8.07506369]
[1741799245119,8.0185,124.74,124.72,0.05576369]
[1741799246023,0.05305756,124.75,124.72,0.05576369]
[1741799246220,0.05305756,124.75,124.73,21.90549659]
[1741799246713,0.05305756,124.75,124.74,8.0181]
[1741799247422,0.05305756,124.75,124.73,8.0184]
[1741799247613,0.05305756,124.75,124.72,33.99576369]
[1741799248526,0.05305756,124.75,124.73,8.0182]
[1741799249327,0.05305756,124.75,124.74,8.0181]
[1741799249521,0.05305756,124.75,124.72,33.99576369]
[1741799249716,8.07075756,124.75,124.72,0.05576369]
[1741799249923,0.05305756,124.75,124.72,8.07456369]
[1741799250126,0.05305756,124.75,124.72,0.05576369]
[1741799250531,0.05305756,124.75,124.74,8.0181]
[1741799251726,4.43983948,124.79,124.73,55.84549659]
[1741799251919,4.43983948,124.79,124.78,8.0155]
[1741799252330,62.17789659,124.84,124.75,21.90549659]
[1741799252626,4.4386603,124.83,124.81,8.0135]
[1741799252826,0.05842306,124.81,124.78,0.05674709]
[1741799253025,0.05842306,124.81,124.77,24.98629659]
[1741799253220,0.05842306,124.81,124.78,0.0599522]
[1741799254228,8.07212306,124.81,124.78,8.0751522]
[1741799254425,0.05842306,124.81,124.78,8.0751522]
[1741799254624,0.05842306,124.81,124.78,0.0599522]
[1741799255323,0.05842306,124.81,124.79,8.0146]
[1741799256827,0.05842306,124.81,124.78,0.0599522]
[1741799257225,4.49641336,124.81,124.78,0.0599522]
[1741799257925,8.0149,124.79,124.78,0.0599522]
[1741799258134,12.4528903,124.79,124.78,0.0599522]
[1741799258325,38.3579903,124.79,124.75,240.52]
[1741799258524,8.0168,124.76,124.75,240.52]
[1741799258735,21.90549659,124.78,124.71,88.85717001]
[1741799259029,21.90549659,124.76,124.71,85.48757001]
[1741799259228,8.0191,124.73,124.71,85.48757001]
[1741799259419,8.0191,124.73,124.72,0.05255383]
[1741799259820,21.90549659,124.74,124.71,85.48757001]
[1741799260020,8.0194,124.72,124.71,85.48757001]
[1741799260623,33.92,124.73,124.67,11.438]
[1741799260826,8.0204,124.71,124.67,11.438]
[1741799261032,8.070923,124.71,124.69,0.05642105]
[1741799261433,8.0206,124.7,124.69,0.05642105]
[1741799261935,0.050523,124.71,124.65,64.1149262]
[1741799262238,4.49417413,124.71,124.65,56.0914262]
[1741799262433,8.0217,124.69,124.65,56.0914262]
[1741799262630,21.90549659,124.7,124.65,56.0914262]
[1741799262829,55.82549659,124.7,124.63,277.7042]
[1741799263024,8.07449308,124.68,124.65,0.05945387]
[1741799263425,0.05219308,124.68,124.65,0.05945387]
[1741799263629,0.05219308,124.68,124.65,8.08325387]
[1741799263831,0.05219308,124.68,124.65,0.05945387]
[1741799265530,0.05219308,124.68,124.67,8.0226]
[1741799266334,33.92,124.73,124.65,69.22877021]
[1741799266538,33.92,124.73,124.65,69.16931634]
[1741799266834,4.44462066,124.72,124.65,69.16931634]
[1741799267041,33.92,124.73,124.65,69.16931634]
[1741799267436,44.7498,124.75,124.71,8.0194]
[1741799267628,0.05630173,124.7,124.68,33.94]
[1741799267833,4.44658592,124.74,124.73,8.0187]
[1741799268238,0.06125557,124.75,124.73,8.0187]
[1741799268539,4.44765554,124.74,124.72,8.07612248]
[1741799269040,4.44765554,124.74,124.73,8.0187]
[1741799269239,0.06125557,124.75,124.73,8.0187]
[1741799270340,4.4488305,124.74,124.72,8.07622248]
[1741799270837,12.4672305,124.74,124.72,0.05712248]
[1741799271037,0.06125557,124.75,124.72,0.05712248]
[1741799271234,4.44925571,124.74,124.72,0.05712248]
[1741799271439,0.06125557,124.75,124.74,8.0181]
[1741799271735,4.5106652,124.75,124.74,8.0181]
[1741799271935,4.5106652,124.75,124.72,0.05712248]
[1741799272135,0.06125557,124.75,124.72,0.05712248]
[1741799272338,4.44987459,124.74,124.72,0.05712248]
[1741799272539,0.06125557,124.75,124.73,8.0187]
[1741799273045,0.06125557,124.75,124.74,8.0181]
[1741799273444,0.06125557,124.75,124.72,0.05712248]
[1741799273644,0.06125557,124.75,124.73,8.0184]
[1741799273842,0.06125557,124.75,124.72,0.05712248]
[1741799274240,0.06125557,124.75,124.74,8.0181]
[1741799274837,0.06125557,124.75,124.72,0.05712248]
[1741799275444,0.06125557,124.75,124.74,8.0181]
[1741799278636,0.06125557,124.75,124.73,8.0184]
[1741799279239,0.06125557,124.75,124.72,8.07632248]
[1741799279846,8.07905557,124.75,124.72,0.05712248]
[1741799280035,0.06125557,124.75,124.72,0.05712248]
[1741799280443,8.0187,124.74,124.72,0.05712248]
[1741799280643,0.06125557,124.75,124.72,0.05712248]
[1741799281045,0.06125557,124.75,124.74,8.0181]
[1741799282347,33.92,124.8,124.78,8.0152]
[1741799282550,4.44924415,124.79,124.78,8.0152]
[1741799282946,4.44924415,124.79,124.73,66.35721634]
[1741799283147,4.44924415,124.78,124.77,8.0158]
[1741799283347,4.44924415,124.78,124.73,66.35721634]
[1741799283545,0.05609369,124.79,124.76,0.05265033]
[1741799283745,0.05609369,124.79,124.76,33.97265033]
[1741799284246,2.6054,124.84,124.77,37.72221634]
[1741799284452,2.7095,124.86,124.77,37.72221634]
[1741799284747,4.44410654,124.85,124.81,8.0132]
[1741799284949,2.7095,124.86,124.8,33.92]
[1741799285151,35.02791634,124.9,124.8,33.92]
[1741799285340,4.44119397,124.89,124.8,33.92]
[1741799285546,0.05120107,124.86,124.84,0.05156988]
[1741799286251,8.06180107,124.86,124.84,0.05156988]
[1741799286550,0.05120107,124.86,124.84,0.05156988]
[1741799290651,0.05120107,124.86,124.84,8.06286988]
[1741799291661,0.05120107,124.86,124.85,8.011]
[1741799292947,0.05120107,124.86,124.84,0.05156988]
[1741799293348,5.4576,124.91,124.84,21.93343136]
[1741799293548,34.20344,124.93,124.86,21.88186148]
[1741799293752,4.4205067,124.92,124.88,8.0087]
[1741799293947,8.0076,124.91,124.88,8.0087]
[1741799294143,34.20344,124.93,124.87,8.0094]
[1741799294351,4.42048815,124.92,124.87,8.0094]
[1741799294650,8.06022793,124.91,124.89,8.06422607]
[1741799294955,8.06022793,124.91,124.89,0.05582607]
[1741799295147,0.05262793,124.91,124.89,0.05582607]
[1741799295343,0.05262793,124.91,124.9,8.0078]
[1741799295550,0.05262793,124.91,124.89,0.05582607]
[1741799296255,0.05262793,124.91,124.9,8.0078]
[1741799297658,0.05262793,124.91,124.89,41.94392607]
[1741799298059,0.05262793,124.91,124.89,33.93582607]
[1741799299257,0.05262793,124.91,124.9,8.0078]
[1741799299458,2.793e-05,124.91,124.9,29.88966148]
[1741799299958,2.793e-05,124.91,124.9,35.17686148]
[1741799301062,161.51471485,124.99,124.9,27.16906148]
[1741799301361,8.0061,124.93,124.89,33.88]
[1741799301558,8.0061,124.93,124.9,8.0075]
[1741799301761,8.0061,124.93,124.89,33.88]
[1741799301960,33.88,124.96,124.89,33.88]
[1741799302157,0.05086102,124.92,124.9,0.05382954]
[1741799302561,8.05776102,124.92,124.9,0.05382954]
[1741799302762,0.05086102,124.92,124.9,0.05382954]
[1741799302961,2.85486102,124.92,124.9,0.05382954]
[1741799303158,8.0088,124.89,124.87,240.32]
[1741799303558,2.804,124.92,124.87,240.32]
[1741799304257,0.05248244,124.91,124.88,0.05161111]
[1741799304758,8.0084,124.89,124.88,0.05161111]
[1741799304958,0.05248244,124.91,124.88,0.05161111]
[1741799305463,8.05998244,124.91,124.88,8.06031111]
[1741799305760,8.05998244,124.91,124.88,0.05161111]
[1741799305967,8.05978244,124.91,124.88,8.06031111]
[1741799306162,0.05248244,124.91,124.88,8.06031111]
[1741799306766,8.05998244,124.91,124.88,8.06031111]
[1741799307065,0.05248244,124.91,124.88,0.05161111]
[1741799307266,8.0082,124.9,124.88,0.05161111]
[1741799307462,0.05248244,124.91,124.88,0.05161111]
[1741799307664,0.05248244,124.91,124.88,8.06021111]
[1741799307861,8.05968244,124.91,124.88,8.06021111]
[1741799308057,8.05968244,124.91,124.88,0.05161111]
[1741799308367,0.05248244,124.91,124.9,8.0078]
[1741799308954,0.05248244,124.91,124.9,41.8678]
[1741799310260,131.27245337,124.98,124.96,8.0039]
[1741799310466,131.27245337,124.98,124.93,33.86]
[1741799310963,140.14545337,125.0,124.94,8.0049]
[1741799311164,8.0036,124.97,124.94,8.0049]
[1741799311359,0.05335489,124.98,124.96,0.05566314]
[1741799312362,8.05645489,124.98,124.96,0.05566314]
[1741799312567,0.05335489,124.98,124.96,0.05566314]
[1741799312767,8.05605489,124.98,124.96,0.05566314]
[1741799313065,0.05335489,124.98,124.96,0.05566314]
[1741799313567,0.05335489,124.98,124.96,8.05926314]
[1741799313968,0.05335489,124.98,124.96,0.05566314]
[1741799314268,0.05335489,124.98,124.97,8.0033]
[1741799314663,0.05335489,124.98,124.96,0.05566314]
[1741799314866,8.05605489,124.98,124.96,0.05566314]
[1741799315364,0.05335489,124.98,124.97,8.0033]
[1741799317262,131.27245337,125.01,125.0,8.0014]
[1741799320369,219.08325057,125.02,125.0,32.32838614]
[1741799320567,219.08325057,125.02,125.01,41.8407]
[1741799320968,0.06079246,125.02,125.01,41.8407]
[1741799321871,9.246e-05,125.02,125.01,41.8407]
[1741799323068,108.75369621,125.03,125.02,8.0001]
[1741799323269,108.75369621,125.03,125.02,40.32848614]
[1741799323570,7.9961,125.09,125.02,38.21928614]
[1741799324079,7.9964,125.08,125.02,38.21928614]
[1741799324375,0.05138151,125.07,125.04,0.0507878]
[1741799325173,0.05138151,125.07,125.04,33.8707878]
[1741799325576,0.05138151,125.07,125.04,306.21917394]
[1741799325974,325.24802633,125.12,125.06,32.32838614]
[1741799326282,325.24802633,125.12,125.07,70.61636074]
[1741799326781,325.24802633,125.12,125.11,7.9944]
[1741799327278,325.24802633,125.12,125.1,55.66283951]
[1741799327779,0.05426036,125.13,125.1,55.66283951]
[1741799327978,0.05426036,125.13,125.11,7.994]
[1741799328180,0.05426036,125.13,125.1,55.66283951]
[1741799328379,0.05426036,125.13,125.1,41.87287392]
[1741799328682,0.05426036,125.13,125.1,33.87827392]
[1741799329570,0.05426036,125.13,125.11,7.9939]
[1741799329773,0.05426036,125.13,125.11,371.65915332]
[1741799330177,0.05426036,125.13,125.11,379.65315332]
[1741799330375,0.05426036,125.13,125.11,371.65915332]
[1741799330776,0.05426036,125.13,125.12,7.9937]
[1741799331170,0.05426036,125.13,125.12,270.87456454]
[1741799331376,36.6317,125.19,125.12,262.88086454]
[1741799331581,36.80290424,125.18,125.12,262.88086454]
[1741799331881,7.9928,125.14,125.12,262.88086454]
[1741799332286,7.9928,125.14,125.12,391.65982109]
[1741799332475,7.9921,125.15,125.12,399.70904219]
[1741799332671,36.80290424,125.18,125.12,399.70904219]
[1741799332878,22.43077989,125.18,125.12,391.71554219]
[1741799333081,22.43077989,125.18,125.13,77.44500553]
[1741799333284,7.9909,125.17,125.14,7.9923]
[1741799333477,2.8317,125.19,125.13,77.44500553]
[1741799333671,2.8317,125.19,125.14,0.0570385]
[1741799333879,2.8317,125.19,125.14,9.12189589]
[1741799334880,7.9917,125.16,125.14,9.12189589]
[1741799335181,7.9917,125.16,125.14,17.11419589]
[1741799335382,2.8317,125.19,125.14,17.11419589]
[1741799335579,2.8317,125.19,125.15,9.06485739]
[1741799336584,7.9912,125.16,125.15,9.06485739]